[Event "*** Titled Tuesday Blitz"]
[Site "Chess.com"]
[Date "2021.02.09"]
[Round "5"]
[White "Savagelittlemole"]
[Black "Vesper2018"]
[Result "1/2-1/2"]
[WhiteElo "2400"]
[BlackElo "2577"]
[TimeControl "180+1"]
[EndTime "10:56:06 PST"]
[Termination "Game drawn by agreement"]

1. e4 {[%clk 0:03:00.9]} 1... c5 {[%clk 0:02:59.6]} 2. Ne2 {[%clk 0:03:00.7]}
2... d6 {[%clk 0:02:57.7]} 3. g3 {[%clk 0:03:00.8]} 3... d5 {[%clk 0:02:57.9]}
4. Bg2 {[%clk 0:03:00.2]} 4... dxe4 {[%clk 0:02:56.9]} 5. Nbc3 {[%clk
0:03:00.8]} 5... Nf6 {[%clk 0:02:56]} 6. Nxe4 {[%clk 0:03:00.8]} 6... Nxe4
{[%clk 0:02:52.9]} 7. Bxe4 {[%clk 0:03:01.7]} 7... g6 {[%clk 0:02:51.7]} 8. O-O
{[%clk 0:03:01.6]} 8... Bg7 {[%clk 0:02:51.7]} 9. d3 {[%clk 0:03:01.7]} 9... O-O
{[%clk 0:02:51.6]} 10. Be3 {[%clk 0:02:59.7]} 10... Qc7 {[%clk 0:02:43.6]} 11.
Qd2 {[%clk 0:02:55.6]} 11... Bh3 {[%clk 0:02:38.2]} 12. Rfe1 {[%clk 0:02:53.4]}
12... e5 {[%clk 0:02:28.6]} 13. Bh6 {[%clk 0:02:49.5]} 13... Nd7 {[%clk
0:02:24]} 14. Nc3 {[%clk 0:02:46.6]} 14... Nf6 {[%clk 0:02:21.2]} 15. Bxg7
{[%clk 0:02:31]} 15... Kxg7 {[%clk 0:02:20.5]} 16. Qe3 {[%clk 0:02:22.4]} 16...
Rfe8 {[%clk 0:02:09.4]} 17. Bg2 {[%clk 0:02:13.9]} 17... Bxg2 {[%clk 0:02:08.1]}
18. Kxg2 {[%clk 0:02:14.8]} 18... Rad8 {[%clk 0:02:07.6]} 19. Qf3 {[%clk
0:02:11.1]} 19... c4 {[%clk 0:02:00.8]} 20. dxc4 {[%clk 0:02:02.4]} 20... Qxc4
{[%clk 0:01:52.5]} 21. Rad1 {[%clk 0:01:57.9]} 21... e4 {[%clk 0:01:35]} 22. Qf4
{[%clk 0:01:38.9]} 22... Rxd1 {[%clk 0:01:30]} 23. Rxd1 {[%clk 0:01:38]} 23...
Re6 {[%clk 0:01:30.5]} 24. Rd8 {[%clk 0:01:30.1]} 24... Qc6 {[%clk 0:01:25.1]}
25. Qe3 {[%clk 0:01:17.3]} 25... Ng4 {[%clk 0:01:18.6]} 26. Qd4+ {[%clk
0:01:17.2]} 26... Nf6 {[%clk 0:01:08]} 27. Kg1 {[%clk 0:00:48]} 27... Qb6 {[%clk
0:01:02.8]} 28. b3 {[%clk 0:00:29.4]} 28... Qxd4 {[%clk 0:00:58.2]} 29. Rxd4
{[%clk 0:00:30.3]} 29... Rc6 {[%clk 0:00:58.4]} 30. Nxe4 {[%clk 0:00:30.3]}
30... Nxe4 {[%clk 0:00:58.5]} 31. Rxe4 {[%clk 0:00:31.2]} 31... Rxc2 {[%clk
0:00:58.5]} 32. Re7 {[%clk 0:00:30]} 32... Rxa2 {[%clk 0:00:56.8]} 33. Rxb7
{[%clk 0:00:30.1]} 33... a5 {[%clk 0:00:56.7]} 1/2-1/2

[Event "*** Titled Tuesday Blitz"]
[Site "Chess.com"]
[Date "2021.02.09"]
[Round "5"]
[White "MFBerna"]
[Black "Nils_03"]
[Result "0-1"]
[WhiteElo "2501"]
[BlackElo "2343"]
[TimeControl "180+1"]
[EndTime "10:56:08 PST"]
[Termination "Nils_03 won by resignation"]

1. d4 {[%clk 0:03:00.6]} 1... d5 {[%clk 0:02:59.8]} 2. c4 {[%clk 0:02:59.8]}
2... e6 {[%clk 0:03:00.2]} 3. Nc3 {[%clk 0:03:00.2]} 3... c6 {[%clk 0:03:00.8]}
4. e3 {[%clk 0:03:00.2]} 4... Nf6 {[%clk 0:03:00.3]} 5. Nf3 {[%clk 0:03:00.6]}
5... Nbd7 {[%clk 0:03:00.4]} 6. Bd3 {[%clk 0:03:01]} 6... dxc4 {[%clk
0:03:00.8]} 7. Bxc4 {[%clk 0:03:01.9]} 7... b5 {[%clk 0:03:01.3]} 8. Bd3 {[%clk
0:03:02.4]} 8... Bb7 {[%clk 0:03:01.9]} 9. O-O {[%clk 0:03:02.9]} 9... a6 {[%clk
0:03:01.9]} 10. Qe2 {[%clk 0:03:03.3]} 10... Bd6 {[%clk 0:02:57.7]} 11. a4
{[%clk 0:03:03.5]} 11... O-O {[%clk 0:02:56.4]} 12. e4 {[%clk 0:02:58.8]} 12...
e5 {[%clk 0:02:54.8]} 13. Bg5 {[%clk 0:02:55.6]} 13... h6 {[%clk 0:02:51.6]} 14.
Bh4 {[%clk 0:02:55.7]} 14... exd4 {[%clk 0:02:45.6]} 15. Nxd4 {[%clk 0:02:55.6]}
15... Ne5 {[%clk 0:02:33.4]} 16. Rad1 {[%clk 0:02:47.6]} 16... b4 {[%clk
0:02:19]} 17. Nb1 {[%clk 0:02:45.2]} 17... Ng6 {[%clk 0:02:01]} 18. Bg3 {[%clk
0:02:40.6]} 18... Bxg3 {[%clk 0:02:00.4]} 19. hxg3 {[%clk 0:02:38]} 19... Qxd4
{[%clk 0:01:57]} 20. Nd2 {[%clk 0:02:10.6]} 20... c5 {[%clk 0:01:49.6]} 21. Nf3
{[%clk 0:02:04.7]} 21... Qd6 {[%clk 0:01:31.6]} 22. Rfe1 {[%clk 0:01:47.3]}
22... Ne5 {[%clk 0:01:18.2]} 23. Nxe5 {[%clk 0:01:46.9]} 23... Qxe5 {[%clk
0:01:19.1]} 24. f4 {[%clk 0:01:44.2]} 24... Qh5 {[%clk 0:01:13]} 25. Qxh5 {[%clk
0:01:37.4]} 25... Nxh5 {[%clk 0:01:13.9]} 26. Kf2 {[%clk 0:01:38.1]} 26... Nf6
{[%clk 0:01:07.6]} 27. e5 {[%clk 0:01:35.4]} 27... Ng4+ {[%clk 0:01:02.3]} 28.
Kf1 {[%clk 0:01:17.5]} 28... Rfd8 {[%clk 0:01:00.5]} 29. Rd2 {[%clk 0:01:03.6]}
29... Rd4 {[%clk 0:00:57.2]} 30. Rc1 {[%clk 0:00:50.3]} 30... Rad8 {[%clk
0:00:55.3]} 31. Rxc5 {[%clk 0:00:49.6]} 31... Rxd3 {[%clk 0:00:54.1]} 32. Rxd3
{[%clk 0:00:50.5]} 32... Rxd3 {[%clk 0:00:54.3]} 33. Rc7 {[%clk 0:00:51.4]}
33... Bd5 {[%clk 0:00:49.7]} 34. Ke2 {[%clk 0:00:47.2]} 34... Rxg3 {[%clk
0:00:48]} 35. Rd7 {[%clk 0:00:44.4]} 35... Rxg2+ {[%clk 0:00:46.9]} 36. Ke1
{[%clk 0:00:43.8]} 0-1

[Event "*** Titled Tuesday Blitz"]
[Site "Chess.com"]
[Date "2021.02.09"]
[Round "5"]
[White "LawrenceTrent"]
[Black "ChristopherYoo"]
[Result "0-1"]
[WhiteElo "2606"]
[BlackElo "2878"]
[TimeControl "180+1"]
[EndTime "10:56:12 PST"]
[Termination "ChristopherYoo won by resignation"]

1. e4 {[%clk 0:03:00.9]} 1... c5 {[%clk 0:02:58.6]} 2. b3 {[%clk 0:03:00.4]}
2... Nf6 {[%clk 0:02:56.6]} 3. e5 {[%clk 0:03:00.3]} 3... Nd5 {[%clk 0:02:56.3]}
4. Bb2 {[%clk 0:03:00.9]} 4... g6 {[%clk 0:02:56.1]} 5. Nc3 {[%clk 0:03:00.4]}
5... Nxc3 {[%clk 0:02:50.9]} 6. Bxc3 {[%clk 0:03:01.3]} 6... Bg7 {[%clk
0:02:43.3]} 7. Nf3 {[%clk 0:03:01.1]} 7... O-O {[%clk 0:02:42.8]} 8. h4 {[%clk
0:03:00.9]} 8... d5 {[%clk 0:02:35.6]} 9. exd6 {[%clk 0:02:48.6]} 9... Bxc3
{[%clk 0:02:34]} 10. dxc3 {[%clk 0:02:49.5]} 10... exd6 {[%clk 0:02:33.9]} 11.
h5 {[%clk 0:02:46.1]} 11... Re8+ {[%clk 0:02:30.8]} 12. Be2 {[%clk 0:02:41]}
12... Qf6 {[%clk 0:02:30.3]} 13. Qd2 {[%clk 0:02:36.7]} 13... Bg4 {[%clk
0:02:26.5]} 14. hxg6 {[%clk 0:02:33.4]} 14... hxg6 {[%clk 0:02:26.2]} 15. Kf1
{[%clk 0:02:32.3]} 15... Nc6 {[%clk 0:02:23.7]} 16. Re1 {[%clk 0:02:30]} 16...
Re7 {[%clk 0:02:19.7]} 17. Qg5 {[%clk 0:02:12.9]} 17... Qxg5 {[%clk 0:02:05.6]}
18. Nxg5 {[%clk 0:02:13.8]} 18... Rae8 {[%clk 0:02:01.8]} 19. f3 {[%clk
0:02:14.2]} 19... Bf5 {[%clk 0:02:00.3]} 20. Kf2 {[%clk 0:02:14.5]} 20... Bxc2
{[%clk 0:01:44.2]} 21. Bc4 {[%clk 0:02:01.3]} 21... Ne5 {[%clk 0:01:18]} 22. Bb5
{[%clk 0:01:53.5]} 22... Nd3+ {[%clk 0:01:13.7]} 23. Bxd3 {[%clk 0:01:53.1]}
23... Bxd3 {[%clk 0:01:04.4]} 24. Rxe7 {[%clk 0:01:51.1]} 24... Rxe7 {[%clk
0:01:04.1]} 25. Rd1 {[%clk 0:01:52]} 25... c4 {[%clk 0:00:58.8]} 26. bxc4 {[%clk
0:01:47.1]} 26... Bxc4 {[%clk 0:00:59.7]} 27. Ne4 {[%clk 0:01:29.7]} 27... d5
{[%clk 0:00:54.2]} 28. Nd2 {[%clk 0:01:03.2]} 28... Re2+ {[%clk 0:00:52.7]} 29.
Kg3 {[%clk 0:01:00.5]} 29... Bxa2 {[%clk 0:00:51.5]} 30. f4 {[%clk 0:00:58.3]}
30... Re3+ {[%clk 0:00:48.2]} 31. Kg4 {[%clk 0:00:57.8]} 31... Rxc3 {[%clk
0:00:47.6]} 32. Ra1 {[%clk 0:00:58.4]} 32... Rc2 {[%clk 0:00:46.6]} 33. Nf3
{[%clk 0:00:58.3]} 33... Rxg2+ {[%clk 0:00:45.7]} 34. Kh3 {[%clk 0:00:58.7]}
34... Rb2 {[%clk 0:00:39.8]} 35. f5 {[%clk 0:00:57.5]} 35... gxf5 {[%clk
0:00:37.7]} 36. Kg3 {[%clk 0:00:57.8]} 36... b5 {[%clk 0:00:36.5]} 37. Kf4
{[%clk 0:00:58.2]} 37... b4 {[%clk 0:00:36.4]} 38. Ne5 {[%clk 0:00:57.1]} 38...
b3 {[%clk 0:00:36]} 39. Kg5 {[%clk 0:00:57.3]} 39... Rb1 {[%clk 0:00:31.1]} 0-1

[Event "*** Titled Tuesday Blitz"]
[Site "Chess.com"]
[Date "2021.02.09"]
[Round "5"]
[White "BabyBoss31"]
[Black "chessmause"]
[Result "0-1"]
[WhiteElo "2340"]
[BlackElo "2211"]
[TimeControl "180+1"]
[EndTime "10:56:12 PST"]
[Termination "chessmause won on time"]

1. d4 {[%clk 0:02:54.8]} 1... Nf6 {[%clk 0:02:58]} 2. Bg5 {[%clk 0:02:54.6]}
2... Ne4 {[%clk 0:02:55.3]} 3. h4 {[%clk 0:02:53.2]} 3... c5 {[%clk 0:02:50.4]}
4. d5 {[%clk 0:02:52.4]} 4... Qa5+ {[%clk 0:02:47.6]} 5. Nd2 {[%clk 0:02:41.1]}
5... Nxg5 {[%clk 0:02:42.8]} 6. hxg5 {[%clk 0:02:40.9]} 6... g6 {[%clk
0:02:39.8]} 7. c3 {[%clk 0:02:13]} 7... d6 {[%clk 0:02:37.3]} 8. Ngf3 {[%clk
0:02:06.6]} 8... Bg7 {[%clk 0:02:34.4]} 9. e3 {[%clk 0:02:00.3]} 9... Nd7 {[%clk
0:02:29.9]} 10. Qc2 {[%clk 0:01:58.1]} 10... a6 {[%clk 0:02:27.1]} 11. Bd3
{[%clk 0:01:48.9]} 11... b5 {[%clk 0:02:23.5]} 12. c4 {[%clk 0:01:37.5]} 12...
Bb7 {[%clk 0:02:18]} 13. a3 {[%clk 0:01:29.1]} 13... Qb6 {[%clk 0:01:28.4]} 14.
Rb1 {[%clk 0:01:23.6]} 14... Ne5 {[%clk 0:01:19]} 15. Nxe5 {[%clk 0:01:11.9]}
15... Bxe5 {[%clk 0:01:18.7]} 16. cxb5 {[%clk 0:00:44.2]} 16... Bxd5 {[%clk
0:01:10.2]} 17. f4 {[%clk 0:00:19.5]} 17... c4 {[%clk 0:01:00.1]} 18. fxe5
{[%clk 0:00:10.7]} 18... Qxe3+ {[%clk 0:00:59.4]} 19. Be2 {[%clk 0:00:09.9]}
19... Bxg2 {[%clk 0:00:55.7]} 20. Nf1 {[%clk 0:00:05.2]} 20... Qxe5 {[%clk
0:00:51.5]} 21. Rg1 {[%clk 0:00:04]} 21... Bxf1 {[%clk 0:00:50.4]} 22. Kxf1
{[%clk 0:00:02]} 22... axb5 {[%clk 0:00:50.2]} 23. Qc3 {[%clk 0:00:01.6]} 23...
Qf4+ {[%clk 0:00:49.3]} 0-1

[Event "*** Titled Tuesday Blitz"]
[Site "Chess.com"]
[Date "2021.02.09"]
[Round "5"]
[White "Margency"]
[Black "mr_gustavo"]
[Result "1-0"]
[WhiteElo "2645"]
[BlackElo "2415"]
[TimeControl "180+1"]
[EndTime "10:56:15 PST"]
[Termination "Margency won on time"]

1. e4 {[%clk 0:03:00.9]} 1... c5 {[%clk 0:02:58.7]} 2. Nf3 {[%clk 0:03:00.6]}
2... d6 {[%clk 0:02:59.1]} 3. d4 {[%clk 0:03:01.2]} 3... cxd4 {[%clk 0:03:00]}
4. Nxd4 {[%clk 0:03:02]} 4... Nf6 {[%clk 0:03:00.5]} 5. Nc3 {[%clk 0:03:02.7]}
5... a6 {[%clk 0:03:01.1]} 6. Be3 {[%clk 0:03:03.3]} 6... e5 {[%clk 0:03:00.4]}
7. Nb3 {[%clk 0:03:03.5]} 7... Be7 {[%clk 0:03:00.9]} 8. f3 {[%clk 0:03:03.7]}
8... Be6 {[%clk 0:03:01.1]} 9. Qd2 {[%clk 0:03:04.1]} 9... O-O {[%clk
0:03:01.4]} 10. O-O-O {[%clk 0:03:04.2]} 10... Nbd7 {[%clk 0:03:02]} 11. g4
{[%clk 0:03:04.2]} 11... b5 {[%clk 0:03:02.6]} 12. Rg1 {[%clk 0:02:59.1]} 12...
b4 {[%clk 0:03:01.3]} 13. Nd5 {[%clk 0:02:59]} 13... Bxd5 {[%clk 0:03:00.1]} 14.
exd5 {[%clk 0:02:59.3]} 14... a5 {[%clk 0:03:00.5]} 15. Kb1 {[%clk 0:02:52.9]}
15... a4 {[%clk 0:03:00.2]} 16. Nc1 {[%clk 0:02:52.9]} 16... Qc7 {[%clk
0:02:57.3]} 17. g5 {[%clk 0:02:52.6]} 17... Nh5 {[%clk 0:02:48.3]} 18. Rg4
{[%clk 0:02:51.2]} 18... Nc5 {[%clk 0:02:26.6]} 19. Rxb4 {[%clk 0:02:42.1]}
19... Rfb8 {[%clk 0:02:23.2]} 20. c3 {[%clk 0:02:25.5]} 20... a3 {[%clk
0:02:02.9]} 21. b3 {[%clk 0:02:22]} 21... Nf4 {[%clk 0:00:47.2]} 22. h4 {[%clk
0:02:16]} 22... Na4 {[%clk 0:00:16.3]} 23. Bc4 {[%clk 0:01:53.5]} 23... Nxd5
{[%clk 0:00:11.6]} 24. Rxa4 {[%clk 0:01:44.2]} 24... Rxa4 {[%clk 0:00:10.1]} 25.
Bxd5 {[%clk 0:01:40.8]} 25... Ra5 {[%clk 0:00:09.6]} 26. b4 {[%clk 0:01:38.2]}
26... Rxd5 {[%clk 0:00:06.9]} 27. Qxd5 {[%clk 0:01:36.3]} 27... Qxc3 {[%clk
0:00:07.2]} 28. Qd2 {[%clk 0:01:35.2]} 28... Rxb4+ {[%clk 0:00:06.8]} 29. Nb3
{[%clk 0:01:35.5]} 29... Rxb3+ {[%clk 0:00:04.7]} 30. axb3 {[%clk 0:01:35.3]}
30... Qxb3+ {[%clk 0:00:05.6]} 31. Ka1 {[%clk 0:01:34.6]} 31... d5 {[%clk
0:00:05.9]} 32. Rb1 {[%clk 0:01:31.3]} 32... Qc4 {[%clk 0:00:05]} 33. Rb8+
{[%clk 0:01:29.1]} 33... Bf8 {[%clk 0:00:04.9]} 34. Qc1 {[%clk 0:01:28.8]} 34...
Qd3 {[%clk 0:00:03]} 35. Bc5 {[%clk 0:01:22.4]} 35... g6 {[%clk 0:00:01.5]} 36.
Bxf8 {[%clk 0:01:22.1]} 1-0

[Event "*** Titled Tuesday Blitz"]
[Site "Chess.com"]
[Date "2021.02.09"]
[Round "5"]
[White "QuintilianoR"]
[Black "GameOverBro"]
[Result "1-0"]
[WhiteElo "2685"]
[BlackElo "2423"]
[TimeControl "180+1"]
[EndTime "10:56:20 PST"]
[Termination "QuintilianoR won by checkmate"]

1. c4 {[%clk 0:03:00.9]} 1... Nf6 {[%clk 0:02:58.1]} 2. Nc3 {[%clk 0:03:00.2]}
2... e5 {[%clk 0:02:56]} 3. Nf3 {[%clk 0:02:58.6]} 3... d6 {[%clk 0:02:51.6]} 4.
d4 {[%clk 0:02:52.3]} 4... Nbd7 {[%clk 0:02:51.3]} 5. e4 {[%clk 0:02:51.6]} 5...
Be7 {[%clk 0:02:50.7]} 6. Be2 {[%clk 0:02:51.6]} 6... O-O {[%clk 0:02:50.5]} 7.
O-O {[%clk 0:02:52.2]} 7... c6 {[%clk 0:02:50.2]} 8. Qc2 {[%clk 0:02:43.6]} 8...
a5 {[%clk 0:02:49.7]} 9. Rd1 {[%clk 0:02:43.4]} 9... Qc7 {[%clk 0:02:49.9]} 10.
h3 {[%clk 0:02:41.8]} 10... a4 {[%clk 0:02:44.3]} 11. Be3 {[%clk 0:02:41.1]}
11... exd4 {[%clk 0:02:43.8]} 12. Nxd4 {[%clk 0:02:40.7]} 12... Nc5 {[%clk
0:02:43.8]} 13. Rab1 {[%clk 0:02:38.6]} 13... Re8 {[%clk 0:02:43.6]} 14. b4
{[%clk 0:02:37.6]} 14... axb3 {[%clk 0:02:43.7]} 15. axb3 {[%clk 0:02:38.5]}
15... Bf8 {[%clk 0:02:43.4]} 16. f3 {[%clk 0:02:37.7]} 16... g6 {[%clk
0:02:37.8]} 17. b4 {[%clk 0:02:26.7]} 17... Na6 {[%clk 0:02:34.7]} 18. Qd2
{[%clk 0:02:15.6]} 18... Bd7 {[%clk 0:02:28.3]} 19. Bf1 {[%clk 0:02:12.5]} 19...
Rad8 {[%clk 0:02:28.1]} 20. Nc2 {[%clk 0:02:08.4]} 20... h5 {[%clk 0:02:23.9]}
21. Na4 {[%clk 0:01:48.4]} 21... c5 {[%clk 0:02:09.3]} 22. b5 {[%clk 0:01:48.4]}
22... Nb8 {[%clk 0:01:58.5]} 23. Nc3 {[%clk 0:01:45.3]} 23... Be6 {[%clk
0:01:56.9]} 24. Bg5 {[%clk 0:01:41.5]} 24... Be7 {[%clk 0:01:52.4]} 25. Ne3
{[%clk 0:01:33.9]} 25... Nbd7 {[%clk 0:01:47.2]} 26. f4 {[%clk 0:01:06.7]} 26...
Nb6 {[%clk 0:01:35.5]} 27. f5 {[%clk 0:01:02.2]} 27... Nxe4 {[%clk 0:00:07.4]}
28. Nxe4 {[%clk 0:01:00.6]} 28... gxf5 {[%clk 0:00:04.6]} 29. Nf6+ {[%clk
0:00:57.3]} 29... Kf8 {[%clk 0:00:01.9]} 30. Bh6# {[%clk 0:00:55.6]} 1-0

[Event "*** Titled Tuesday Blitz"]
[Site "Chess.com"]
[Date "2021.02.09"]
[Round "5"]
[White "Skat2704"]
[Black "NoGalloNoParty"]
[Result "1-0"]
[WhiteElo "2523"]
[BlackElo "2358"]
[TimeControl "180+1"]
[EndTime "10:56:21 PST"]
[Termination "Skat2704 won on time"]

1. d4 {[%clk 0:02:58.3]} 1... Nf6 {[%clk 0:02:55.3]} 2. c4 {[%clk 0:02:57.5]}
2... g6 {[%clk 0:02:53.9]} 3. Nc3 {[%clk 0:02:55.1]} 3... d5 {[%clk 0:02:54]} 4.
Nf3 {[%clk 0:02:52.1]} 4... Bg7 {[%clk 0:02:53.5]} 5. e3 {[%clk 0:02:51.5]} 5...
O-O {[%clk 0:02:52.2]} 6. cxd5 {[%clk 0:02:49.8]} 6... Nxd5 {[%clk 0:02:51.6]}
7. Bc4 {[%clk 0:02:48.7]} 7... Nb6 {[%clk 0:02:45.9]} 8. Bb3 {[%clk 0:02:47]}
8... Na6 {[%clk 0:02:45.5]} 9. O-O {[%clk 0:02:45]} 9... c5 {[%clk 0:02:45.1]}
10. h3 {[%clk 0:02:39.6]} 10... cxd4 {[%clk 0:02:38]} 11. exd4 {[%clk
0:02:37.5]} 11... Nb4 {[%clk 0:02:34.7]} 12. Re1 {[%clk 0:02:33.6]} 12... Bf5
{[%clk 0:02:28.4]} 13. Bg5 {[%clk 0:02:24]} 13... Re8 {[%clk 0:02:24.1]} 14. Ne5
{[%clk 0:02:18.6]} 14... N4d5 {[%clk 0:02:18.5]} 15. Qf3 {[%clk 0:02:09.7]}
15... Be6 {[%clk 0:02:14.7]} 16. Rad1 {[%clk 0:02:05]} 16... a6 {[%clk
0:01:40.7]} 17. Ne4 {[%clk 0:01:59.4]} 17... Rf8 {[%clk 0:01:14.4]} 18. Nc5
{[%clk 0:01:55.3]} 18... Bc8 {[%clk 0:01:06.8]} 19. h4 {[%clk 0:01:36.4]} 19...
Qd6 {[%clk 0:01:05.5]} 20. h5 {[%clk 0:01:33.1]} 20... f6 {[%clk 0:00:52.1]} 21.
Nxg6 {[%clk 0:01:25.2]} 21... hxg6 {[%clk 0:00:47.5]} 22. Bf4 {[%clk 0:01:21.1]}
22... e5 {[%clk 0:00:30.9]} 23. dxe5 {[%clk 0:01:16.8]} 23... Qxc5 {[%clk
0:00:30.7]} 24. Rxd5 {[%clk 0:00:56.9]} 24... Nxd5 {[%clk 0:00:20.7]} 25. Bxd5+
{[%clk 0:00:56.5]} 25... Kh8 {[%clk 0:00:08.7]} 26. hxg6 {[%clk 0:00:53.2]} 1-0

[Event "*** Titled Tuesday Blitz"]
[Site "Chess.com"]
[Date "2021.02.09"]
[Round "5"]
[White "juli2512"]
[Black "oykuince"]
[Result "1-0"]
[WhiteElo "2177"]
[BlackElo "1965"]
[TimeControl "180+1"]
[EndTime "10:56:24 PST"]
[Termination "juli2512 won on time"]

1. e4 {[%clk 0:03:00.9]} 1... c5 {[%clk 0:02:58.7]} 2. Nc3 {[%clk 0:03:00.1]}
2... e6 {[%clk 0:02:58]} 3. g3 {[%clk 0:03:00.6]} 3... Nc6 {[%clk 0:02:54.3]} 4.
Bg2 {[%clk 0:03:00.7]} 4... g6 {[%clk 0:02:54.2]} 5. Nge2 {[%clk 0:03:00.2]}
5... Bg7 {[%clk 0:02:54.3]} 6. d3 {[%clk 0:03:00.7]} 6... Nge7 {[%clk
0:02:53.6]} 7. f4 {[%clk 0:03:00.6]} 7... O-O {[%clk 0:02:51.3]} 8. O-O {[%clk
0:03:00.2]} 8... d6 {[%clk 0:02:50.6]} 9. g4 {[%clk 0:03:00.1]} 9... f5 {[%clk
0:02:49]} 10. gxf5 {[%clk 0:02:59.3]} 10... exf5 {[%clk 0:02:47.7]} 11. Ng3
{[%clk 0:02:59.4]} 11... Rb8 {[%clk 0:02:31.6]} 12. Rb1 {[%clk 0:02:52.9]} 12...
Nd4 {[%clk 0:02:16.9]} 13. Nd5 {[%clk 0:02:46]} 13... Nxd5 {[%clk 0:02:08]} 14.
exd5 {[%clk 0:02:45.6]} 14... Nb5 {[%clk 0:01:55.8]} 15. Be3 {[%clk 0:02:37.8]}
15... b6 {[%clk 0:01:15.9]} 16. c3 {[%clk 0:02:30.9]} 16... Bb7 {[%clk
0:01:12.4]} 17. Bf2 {[%clk 0:02:25.9]} 17... Nc7 {[%clk 0:01:08.1]} 18. c4
{[%clk 0:02:23]} 18... b5 {[%clk 0:01:04.7]} 19. Re1 {[%clk 0:02:20]} 19... bxc4
{[%clk 0:01:00.1]} 20. dxc4 {[%clk 0:02:19.9]} 20... Ba6 {[%clk 0:00:46.9]} 21.
b3 {[%clk 0:02:19.2]} 21... Bc8 {[%clk 0:00:44.8]} 22. Re2 {[%clk 0:02:12.9]}
22... a5 {[%clk 0:00:44.7]} 23. Qc2 {[%clk 0:02:07.2]} 23... Na6 {[%clk
0:00:28.7]} 24. Rbe1 {[%clk 0:02:03]} 24... Rb7 {[%clk 0:00:18.7]} 25. Qd2
{[%clk 0:01:51]} 25... a4 {[%clk 0:00:17.9]} 26. bxa4 {[%clk 0:01:49.2]} 26...
Bd7 {[%clk 0:00:17.8]} 27. a5 {[%clk 0:01:47.9]} 27... Ba4 {[%clk 0:00:16.2]}
28. Re6 {[%clk 0:01:43]} 28... Rb2 {[%clk 0:00:15.3]} 29. Qc1 {[%clk 0:01:39.4]}
29... Rxa2 {[%clk 0:00:14.3]} 30. Re7 {[%clk 0:01:38.6]} 30... Rxf2 {[%clk
0:00:07.9]} 31. Kxf2 {[%clk 0:01:35.8]} 31... Bd4+ {[%clk 0:00:08.4]} 32. Kf1
{[%clk 0:01:29.9]} 32... Qxa5 {[%clk 0:00:09.3]} 33. Bf3 {[%clk 0:01:26.1]}
33... Bc3 {[%clk 0:00:07.3]} 34. R1e6 {[%clk 0:01:22.2]} 34... Bb3 {[%clk
0:00:07.4]} 35. Kg2 {[%clk 0:01:21.2]} 35... Bxc4 {[%clk 0:00:07.2]} 36. Qd1
{[%clk 0:01:20.4]} 36... Nb4 {[%clk 0:00:02.8]} 37. Rxd6 {[%clk 0:01:18.9]} 1-0

[Event "*** Titled Tuesday Blitz"]
[Site "Chess.com"]
[Date "2021.02.09"]
[Round "5"]
[White "CzechmVIII"]
[Black "Sergey85Rodchenkov"]
[Result "0-1"]
[WhiteElo "2259"]
[BlackElo "2482"]
[TimeControl "180+1"]
[EndTime "10:56:26 PST"]
[Termination "Sergey85Rodchenkov won on time"]

1. e4 {[%clk 0:03:00.9]} 1... c5 {[%clk 0:02:55.9]} 2. Nf3 {[%clk 0:03:00.7]}
2... d6 {[%clk 0:02:54.6]} 3. d4 {[%clk 0:03:00.6]} 3... cxd4 {[%clk 0:02:54.2]}
4. Nxd4 {[%clk 0:03:01.5]} 4... Nf6 {[%clk 0:02:54.4]} 5. Nc3 {[%clk 0:03:01.6]}
5... a6 {[%clk 0:02:54.5]} 6. Bg5 {[%clk 0:03:02]} 6... Nbd7 {[%clk 0:02:53.6]}
7. Bc4 {[%clk 0:03:00.9]} 7... e6 {[%clk 0:02:51.2]} 8. O-O {[%clk 0:02:47.6]}
8... b5 {[%clk 0:02:49.9]} 9. Bxe6 {[%clk 0:02:38.3]} 9... fxe6 {[%clk
0:02:49.1]} 10. Nxe6 {[%clk 0:02:38.5]} 10... Qb6 {[%clk 0:02:46.7]} 11. Nd5
{[%clk 0:02:24.8]} 11... Nxd5 {[%clk 0:02:44]} 12. exd5 {[%clk 0:02:24.6]} 12...
Ne5 {[%clk 0:02:37.1]} 13. Be3 {[%clk 0:02:09.7]} 13... Qb7 {[%clk 0:02:36.5]}
14. f4 {[%clk 0:01:37.1]} 14... Nc4 {[%clk 0:02:34.7]} 15. Bd4 {[%clk
0:01:37.2]} 15... Bxe6 {[%clk 0:02:34.4]} 16. dxe6 {[%clk 0:01:37.1]} 16...
O-O-O {[%clk 0:02:32.4]} 17. b3 {[%clk 0:01:28.1]} 17... Nb6 {[%clk 0:02:31.1]}
18. c4 {[%clk 0:01:09.1]} 18... b4 {[%clk 0:02:11.5]} 19. Qe2 {[%clk 0:00:58]}
19... Be7 {[%clk 0:01:59.7]} 20. Qe3 {[%clk 0:00:43.7]} 20... Na8 {[%clk
0:01:50.1]} 21. a3 {[%clk 0:00:43.8]} 21... d5 {[%clk 0:01:44.1]} 22. c5 {[%clk
0:00:36.4]} 22... Nc7 {[%clk 0:01:40.4]} 23. axb4 {[%clk 0:00:33.1]} 23... Qxb4
{[%clk 0:01:39.5]} 24. Rfc1 {[%clk 0:00:19.7]} 24... Nb5 {[%clk 0:01:32.3]} 25.
Bxg7 {[%clk 0:00:15.7]} 25... Rhg8 {[%clk 0:01:28.1]} 26. Be5 {[%clk 0:00:15.3]}
26... Qe4 {[%clk 0:01:22.2]} 27. Qxe4 {[%clk 0:00:13.5]} 27... dxe4 {[%clk
0:01:22.4]} 28. Rxa6 {[%clk 0:00:14.3]} 28... Rd2 {[%clk 0:01:20.3]} 29. Ra8+
{[%clk 0:00:11.9]} 29... Kb7 {[%clk 0:01:18.9]} 30. Rxg8 {[%clk 0:00:12.6]}
30... Kc6 {[%clk 0:01:18.4]} 31. Rg7 {[%clk 0:00:12.7]} 31... Bxc5+ {[%clk
0:01:17.6]} 32. Kh1 {[%clk 0:00:12]} 32... e3 {[%clk 0:01:05]} 33. b4 {[%clk
0:00:11.8]} 33... e2 {[%clk 0:01:04.5]} 34. Rxc5+ {[%clk 0:00:03.1]} 34... Kb6
{[%clk 0:01:04]} 0-1